Workbook

Sheet Nutzungsbedingungen
B2: =HLOOKUP(Sprachen!$G$1,Sprachen!$F$2:$O$50,40,0) -> NUTZUNGSBEDINGUNGEN
B3: =HLOOKUP(Sprachen!$G$1,Sprachen!$F$2:$O$50,36,0) -> Berechnungstool RAUPEX Industrierohrsystem: Montage mit Vorspannung oder Selbstspannung
B5: =HLOOKUP(Sprachen!$G$1,Sprachen!$F$2:$O$50,37,0) -> Mit diesem RAUPEX Berechnungstool können verschiedene Kräfte bei der Montage mit Vorspannung ermittelt werden. Das RAUPEX-System muss hierbei aus den Komponenten RAUPEX oder RAUTHERM FW Rohren der Rohrreihen SDR 11 oder SDR 7,4 und den Verbindungstechniken SCHIEBEHÜLSE, SMARTFUSE oder FUSAPEX bestehen. In den vorgespannten Rohrleitungsteilen dürfen hierbei keine Flanschverbindungen, keine bauseitigen Verbindungstechniken oder zugempfindliche Bauteile enthalten sein. Nach Eingabe aller Daten in den grau hinterlegten Zellen werden erwartende Kräfte im Betrieb unter Druck, außer Betrieb drucklos sowie zur Vorspannung ermittelt. Die im Berechnungstool ermittelten Kräfte sind hierbei nicht mit Sicherheitsfaktoren beaufschlagt. Die größte ermittelte Kraft ist relevant für die Auslegung der Festpunkte. Auch wird eine Zuglänge zur Vorspannung ermittelt, welche vorzugsweise in der Mitte der Rohrleitung zu platzieren ist. Die Kraftübertragung am Festpunkt oder beim Vorspannen der Rohrleitung muss immer über die stirnseitige, über das Rohr herausstehende, Kreisringfläche der Verbindungstechnik erfolgen. Ergänzende Informationen zur Montage mit Vorspannung sind dem Installationsvideo zu entnehmen, welche durch einen Klick auf nebenstehendes Bild gestartet werden kann. Bauseitige Komponenten und Gebäudeanforderungen außerhalb des RAUPEX-Systems sind in der Betrachtung nicht einbezogen und müssen durch den Errichter und Betreiber gesondert definiert und umgesetzt werden. Das Berechnungstool bietet unterschiedliche Eingabemöglichkeiten an, welche durch den Benutzer auszuwählen, zu kombinieren und auf den jeweiligen Anwendungsfall zu übertragen sind. Die bei der Berechnung hinterlegten Formeln, Konstanten, Variablen und Näherungswerte können nicht immer auf die jeweiligen Betriebsparameter angepasst werden. Der sich hierbei ergebende Fehler fließt direkt in die Ergebnisse ein. Auch können sich durch Fehler in der Berechnung weitere Abweichungen ergeben.
B19: =HLOOKUP(Sprachen!$G$1,Sprachen!$F$2:$O$50,38,0) -> Das Ergebnis ist damit ausschließlich eine ungefähre Näherung, für deren praktische Genauigkeit und Anwendbarkeit wir im Einzelfall keine Gewähr übernehmen können. | I19: =HLOOKUP(Sprachen!$G$1,Sprachen!$F$2:$O$50,42,0) -> Installationsvideo
B22: =HLOOKUP(Sprachen!$G$1,Sprachen!$F$2:$O$50,39,0) -> Wir sind stehts bemüht dieses Berechnungstool zu verbessern und bitten in diesem Zusammenhang um Ihre Rückmeldung aus der praktischen Anwendung sowie der Übereinstimmung mit Anlagen im Betrieb. Aktualisierte Versionen werden über unsere Homepage als Download zur Verfügung gestellt, somit prüfen Sie bitte bei Nutzung die Aktualität des Berechnungstool. Alle Daten innerhalb dieser Webseite/Software sind urheberrechtlich geschützt und dürfen nicht ohne Zustimmung der Rechteinhaber verwendet werden. Die durch das Urheberrecht begründeten Rechte, insbesondere die der Übersetzung, des Nachdruckes, der Entnahme von Abbildungen, der Funksendungen, der Wiedergabe auf fotomechanischem oder ähnlichem Wege und der Speicherung in Datenverarbeitungsanlagen, bleibt vorbehalten. Durch die Nutzung dieses Berechnungstools gelten die Liefer- und Zahlungsbedingungen der REHAU Industries SE & Co. KG als akzeptiert. Diese stehen auf unserer Homepage zur Verfügung oder unter folgendem Link: www.rehau.com/de-de/liefer-und-zahlungsbedingungen Wenn Sie Fragen haben, kontaktieren Sie uns bitte: REHAU Industries SE & Co. KG, Ytterbium 4, D-91058 Erlangen Tel. +49-9131-92-0, Team Industrierohrsysteme
M30: V-09.25
I31: =HLOOKUP(Sprachen!$G$1,Sprachen!$F$2:$O$50,43,0) -> Sprache wählen
I35: =HLOOKUP(Sprachen!$G$1,Sprachen!$F$2:$O$50,35,0) -> Nutzungsbedingungen akzeptieren

Sheet Vorspannung
B2: =HLOOKUP(Sprachen!$G$1,Sprachen!$F$2:$O$50,2,0) -> RAUPEX Industrierohrsystem
B3: =HLOOKUP(Sprachen!$G$1,Sprachen!$F$2:$O$50,3,0) -> Montage mit Vorspannung
C4: =IF(Sprachen!D16<0,Sprachen!C16,"") -> 
B5: =HLOOKUP(Sprachen!$G$1,Sprachen!$F$2:$O$50,4,0) -> RAUPEX Rohr | D5: 63 x 5,8 SDR 11 | K5: =HLOOKUP(Sprachen!$G$1,Sprachen!$F$2:$O$50,41,0) -> Bitte klicken Sie hier und beachten die Hinweise in den Nutzungsbedingungen.
B6: =HLOOKUP(Sprachen!$G$1,Sprachen!$F$2:$O$50,34,0) -> Kommentar | G6: [mm]
B9: =HLOOKUP(Sprachen!$G$1,Sprachen!$F$2:$O$50,5,0) -> Rohraußendurchmesser | C9: da | E9: =VLOOKUP(D5,Sprachen!P3:S19,2,FALSE) -> 63 | F9: [mm] | M9: =TODAY() -> 2025-11-24
B10: =HLOOKUP(Sprachen!$G$1,Sprachen!$F$2:$O$50,6,0) -> Rohrwandstärke | C10: s | E10: =VLOOKUP(D5,Sprachen!P3:S19,3,FALSE) -> 5.8 | F10: [mm] | H10: =HLOOKUP(Sprachen!$G$1,Sprachen!$F$2:$O$50,21,0) -> Ergebnisse
B11: =HLOOKUP(Sprachen!$G$1,Sprachen!$F$2:$O$50,7,0) -> Ausdehnungskoeffizient | C11: a | E11: 0.15 | F11: [mm/mK]
B13: =HLOOKUP(Sprachen!$G$1,Sprachen!$F$2:$O$50,8,0) -> Betriebsdruck | C13: pB | E13: 3 | F13: [bar] | H13: =HLOOKUP(Sprachen!$G$1,Sprachen!$F$2:$O$50,22,0) -> Längenermittlung
H14: =HLOOKUP(Sprachen!$G$1,Sprachen!$F$2:$O$50,23,0) -> Gesamtzuglänge | K14: ΔL | L14: =P59 -> 296 | M14: [mm]
B15: =HLOOKUP(Sprachen!$G$1,Sprachen!$F$2:$O$50,9,0) -> Temperatur bei Montage | C15: Tz | E15: 20 | F15: [°C]
B17: =HLOOKUP(Sprachen!$G$1,Sprachen!$F$2:$O$50,10,0) -> Temperatur im Betrieb maximal | C17: TB max | E17: 35 | F17: [°C] | H17: =HLOOKUP(Sprachen!$G$1,Sprachen!$F$2:$O$50,24,0) -> Montagetemperatur | K17: Tz
B18: =HLOOKUP(Sprachen!$G$1,Sprachen!$F$2:$O$50,11,0) -> Temperatur im Betrieb minimal | C18: TB min | E18: 30 | F18: [°C] | H18: =HLOOKUP(Sprachen!$G$1,Sprachen!$F$2:$O$50,25,0) -> Zugkraft | K18: Fz | L18: =T56 -> 1,876 | M18: [N]
B20: =HLOOKUP(Sprachen!$G$1,Sprachen!$F$2:$O$50,12,0) -> Temperatur außer Betrieb, drucklos maximal | C20: TaB max | E20: 10 | F20: [°C]
B21: =HLOOKUP(Sprachen!$G$1,Sprachen!$F$2:$O$50,13,0) -> Temperatur außer Betrieb, drucklos minimal | C21: TaB min | E21: 5 | F21: [°C] | H21: =HLOOKUP(Sprachen!$G$1,Sprachen!$F$2:$O$50,26,0) -> Im Betrieb unter Druck | L21: TBmax | M21: I | N21: TBmin
H22: =HLOOKUP(Sprachen!$G$1,Sprachen!$F$2:$O$50,27,0) -> Kraft im Festpunkt | K22: FB | L22: =T59 -> 0 | M22: [N] | N22: =T60 -> 415
B23: =HLOOKUP(Sprachen!$G$1,Sprachen!$F$2:$O$50,14,0) -> Abstand der Festpunktschellen außen | C23: La | E23: 100 | F23: [m]
B24: =HLOOKUP(Sprachen!$G$1,Sprachen!$F$2:$O$50,15,0) -> Abstand Fitting zu Fixpunkt links | C24: Lfixl | E24: 10 | F24: [mm]
B25: =HLOOKUP(Sprachen!$G$1,Sprachen!$F$2:$O$50,16,0) -> Abstand Fitting zu Fixpunkt rechts | C25: Lfixr | E25: 15 | F25: [mm] | H25: =HLOOKUP(Sprachen!$G$1,Sprachen!$F$2:$O$50,28,0) -> Außer Betrieb drucklos | L25: TaBmax | M25: I | N25: TaBmin
H26: =HLOOKUP(Sprachen!$G$1,Sprachen!$F$2:$O$50,29,0) -> Kraft im Festpunkt | K26: FaB | L26: =T62 -> 3,870 | M26: [N] | N26: =T63 -> 5,123
B29: =E24 -> 10 mm | D29: =E23 -> 100.0 m | J29: =E25 -> 15 mm
B30: Lfixl | D30: La | J30: Lfixr | N30: =IF(P54="Vorspannung",HLOOKUP(Sprachen!$G$1,Sprachen!$F$2:$O$50,30,0),HLOOKUP(Sprachen!$G$1,Sprachen!$F$2:$O$50,31,0)) -> Vorspannung
N32: =IF(P54="Vorspannung",HLOOKUP(Sprachen!$G$1,Sprachen!$F$2:$O$50,20,0),HLOOKUP(Sprachen!$G$1,Sprachen!$F$2:$O$50,33,0)) -> Rohr ziehen
D34: ΔL
D35: =L14 -> 296 mm
H54: d Tmontage | I54: dLDruck | J54: dLTemp | K54: dLÜberstand | L54: dLgesamt | M54: E-Modul | N54: Spannung | O54: Kraft | P54: =IF((P59>0),"Vorspannung","Selbstspannung") -> Vorspannung | R54: dLSpannung | S54: Spannung | T54: Kraft
H56: 0 | I56: =((1-2*Quellen!P6)*E23*1000*X35/10)/(M56*((E9^2/(E9-E10-E10)^2)-1)) -> 0 | J56: 0 | L56: =SUM(I56:K56) -> 0 | M56: =VLOOKUP(E15,Quellen!A3:B138,2,TRUE) -> 664 | N56: =IFERROR(M56*L56/1000/E23,"-") -> 0.0 | O56: =IFERROR(N56*Quellen!P3*Quellen!P7,"-") -> 0 | R56: =IF(MAX(L59:L63)>0,MAX(L59:L63)+I56,0) -> 271 | S56: =IFERROR(R56*M56/1000/E23,"-") -> 1.8 | T56: =IFERROR(S56*Quellen!P3*Quellen!P7,"-") -> 1,876
G59: TB max | H59: =E17-E15 -> 15 | I59: =((1-2*Quellen!P6)*E23*1000*E13/10)/(M59*((E9^2/(E9-E10-E10)^2)-1))-I56 -> 46 | J59: =H59*E11*E23 -> 225 | L59: =I59+J59+K59 -> 271 | M59: =VLOOKUP(E17,Quellen!A3:B138,2,TRUE) -> 390.1 | N59: =IFERROR(M59*L59/1000/E23,"-") -> 1.1 | O59: =IFERROR(N59*Quellen!P3*Quellen!P7,"-") -> 1,101 | P59: =IF(MAX(L59,L60,L62,L63)+E24+E25>0,MAX(L59,L60,L62,L63)+E24+E25,0) -> 296 | R59: =IF(P59>0,R56-L59,L59+E24+E25) -> 0 | S59: =IFERROR(R59*M59/1000/E23,"-") -> 0.0 | T59: =ABS(IFERROR(S59*Quellen!P3*Quellen!P7,"-")) -> 0
G60: TB min | H60: =E18-E15 -> 10 | I60: =((1-2*Quellen!P6)*E23*1000*E13/10)/(M60*((E9^2/(E9-E10-E10)^2)-1))-I56 -> 38 | J60: =H60*E11*E23 -> 150 | L60: =I60+J60+K60 -> 188 | M60: =VLOOKUP(E18,Quellen!A3:B138,2,TRUE) -> 477 | N60: =IFERROR(M60*L60/1000/E23,"-") -> 0.9 | O60: =IFERROR(N60*Quellen!P3*Quellen!P7,"-") -> 933 | R60: =IF(P59>0,R56-L60,L60+E24+E25) -> 83 | S60: =IFERROR(R60*M60/1000/E23,"-") -> 0.4 | T60: =ABS(IFERROR(S60*Quellen!P3*Quellen!P7,"-")) -> 415
G62: TaB max | H62: =E20-E15 -> -10 | I62: =0-I56 -> 0 | J62: =H62*E11*E23 -> -150 | L62: =I62+J62+K62 -> -150 | M62: =VLOOKUP(E20,Quellen!A3:B138,2,TRUE) -> 882 | N62: =IFERROR(M62*L62/1000/E23,"-") -> -1.3 | O62: =IFERROR(N62*Quellen!P3*Quellen!P7,"-") -> -1,379 | R62: =IF(P59>0,R56-L62,L62+E24+E25) -> 421 | S62: =IFERROR(R62*M62/1000/E23,"-") -> 3.7 | T62: =ABS(IFERROR(S62*Quellen!P3*Quellen!P7,"-")) -> 3,870
G63: TaB min | H63: =E21-E15 -> -15 | I63: =0-I56 -> 0 | J63: =H63*E23*E11 -> -225 | L63: =I63+J63+K63 -> -225 | M63: =VLOOKUP(E21,Quellen!A3:B138,2,TRUE) -> 991 | N63: =IFERROR(M63*L63/1000/E23,"-") -> -2.2 | O63: =IFERROR(N63*Quellen!P3*Quellen!P7,"-") -> -2,324 | R63: =IF(P59>0,R56-L63,L63+E24+E25) -> 496 | S63: =IFERROR(R63*M63/1000/E23,"-") -> 4.9 | T63: =ABS(IFERROR(S63*Quellen!P3*Quellen!P7,"-")) -> 5,123
L64: =MAX(L59:L63) -> 271 | P64: BASIS | T64: [Beträge]
G68: RAUPEX Rohr | J68: Ringfläche [mm2] | K68: Streckgrenze [N/mm2] | L68: Kraft [N]
G69: 32 | H69: 2.9 | I69: =G69-H69-H69 -> 26.2 | J69: =((G69^2)*PI()/4)-((I69^2)*PI()/4) -> 265 | K69: 17 | L69: =J69*K69 -> 4507
G70: 63 | H70: 5.8 | I70: =G70-H70-H70 -> 51.4 | J70: =((G70^2)*PI()/4)-((I70^2)*PI()/4) -> 1042 | K70: 17 | L70: =J70*K70 -> 17718
G71: 160 | H71: 14.6 | I71: 130.8 | J71: =((G71^2)*PI()/4)-((I71^2)*PI()/4) -> 6669 | K71: 17 | L71: 113375
G72: =E9 -> 63 | H72: =E10 -> 5.8 | I72: =G72-H72-H72 -> 51.4 | J72: =((G72^2)*PI()/4)-((I72^2)*PI()/4) -> 1042 | K72: 15 | L72: =J72*K72 -> 15634

Sheet Sprachen (hidden)
A1: 1 | B1: =G2 -> Deutsch | C1: 1 | F1: Sprache | G1: =VLOOKUP(C1,A1:B14,2,FALSE) -> Deutsch
A2: 2 | B2: =H2 -> English | E2: 1 | F2: Original | G2: Deutsch | H2: English | I2: Italiano | J2: Español | K2: Polski | L2: 中文
A3: 3 | B3: Italiano | E3: 2 | G3: RAUPEX Industrierohrsystem | H3: RAUPEX Industrial Piping System | K3: System instalacji przemysłowych RAUPEX | L3: RAUPEX工业管道系统 | P3: =Q3&" x "&R3&" "&S3 -> 20 x 1,9 SDR 11 | Q3: 20 | R3: 1.9 | S3: SDR 11
A4: 4 | B4: Español | E4: 3 | G4: Montage mit Vorspannung | H4: Prestressed installation | K4: Mongaż z naciągiem wstępnym | L4: 预应力安装 | P4: 25 x 2,3 SDR 11 | Q4: 25 | R4: 2.3 | S4: SDR 11
A5: 5 | B5: Polski | E5: 4 | G5: RAUPEX Rohr | H5: RAUPEX pipe | K5: Rura RAUPEX | L5: RAUPEX管道 | P5: 32 x 2,9 SDR 11 | Q5: 32 | R5: 2.9 | S5: SDR 11
A6: 6 | B6: 中文 | E6: 5 | G6: Rohraußendurchmesser | H6: Outer pipe diameter | K6: Średnica zewnętrzna rury | L6: 管道外径 | P6: 40 x 3,7 SDR 11 | Q6: 40 | R6: 3.7 | S6: SDR 11
A7: 7 | E7: 6 | G7: Rohrwandstärke | H7: Pipe wall thickness | K7: Grubość ścianki rury | L7: 管道壁厚 | P7: 50 x 4,6 SDR 11 | Q7: 50 | R7: 4.6 | S7: SDR 11
A8: 8 | E8: 7 | G8: Ausdehnungskoeffizient | H8: Coefficient of expansion | K8: Współczynnik rozszerzalności | L8: 膨胀系数 | P8: 63 x 5,8 SDR 11 | Q8: 63 | R8: 5.8 | S8: SDR 11
A9: 9 | E9: 8 | G9: Betriebsdruck | H9: Operating pressure | K9: Ciśnienie robocze | L9: 工作压力 | P9: 75 x 6,8 SDR 11 | Q9: 75 | R9: 6.8 | S9: SDR 11
E10: 9 | G10: Temperatur bei Montage | H10: Installation temperature | K10: Temperatura montażu | L10: 安装时温度 | P10: 90 x 8,2 SDR 11 | Q10: 90 | R10: 8.2 | S10: SDR 11
E11: 10 | G11: Temperatur im Betrieb maximal | H11: Temperature max. during operation | K11: Temperatura robocza maks. | L11: 工作时最高温度 | P11: 110 x 10 SDR 11 | Q11: 110 | R11: 10.0 | S11: SDR 11
B12: =HLOOKUP($G$1,$F$2:$O$50,2,0) -> RAUPEX Industrierohrsystem | E12: 11 | G12: Temperatur im Betrieb minimal | H12: Temperature min. during operation | K12: Temperatura robocza min. | L12: 工作时最低温度 | P12: 125 x 11,4 SDR 11 | Q12: 125 | R12: 11.4 | S12: SDR 11
E13: 12 | G13: Temperatur außer Betrieb, drucklos maximal | H13: Temperature max. offline, pressureless | K13: Temperatura offline, bez ciśnienia maks. | L13: 非工作、无压状态时最高温度 | P13: 160 x 14,6 SDR 11 | Q13: 160 | R13: 14.6 | S13: SDR 11
E14: 13 | G14: Temperatur außer Betrieb, drucklos minimal | H14: Temperature min. offline, pressureless | K14: Temperatura offline, bez ciśnienia min. | L14: 非工作、无压状态时最低温度 | P14: 20 x 2,8 SDR 7,4 | Q14: 20 | R14: 2.8 | S14: SDR 7,4
E15: 14 | G15: Abstand der Festpunktschellen außen | H15: Distance of the fixed point clamps outside | K15: Odległość punktów stałych | L15: 管道外部锚点间的距离 | P15: 25 x 3,5 SDR 7,4 | Q15: 25 | R15: 3.5 | S15: SDR 7,4
E16: 15 | G16: Abstand Fitting zu Fixpunkt links | H16: Distance fitting to fixed point left | K16: Odległość punktu stałego po lewej stronie | L16: 左侧锚固管件到左锚点的间隙 | P16: 32 x 4,4 SDR 7,4 | Q16: 32 | R16: 4.4 | S16: SDR 7,4
E17: 16 | G17: Abstand Fitting zu Fixpunkt rechts | H17: Distance fitting to fixed point right | K17: Odległość punktu stałego po prawej stronie | L17: 右侧锚固管件到右锚点的间隙 | P17: 40 x 5,5 SDR 7,4 | Q17: 40 | R17: 5.5 | S17: SDR 7,4
E18: 17 | G18: Optimierung möglich aber Problem Offline | H18: … | P18: 50 x 6,9 SDR 7,4 | Q18: 50 | R18: 6.9 | S18: SDR 7,4
E19: 18 | G19: letzte Verbindung | H19: Last connection | K19: Ostatnie połączenie | L19: 最后一个连接 | P19: 63 x 8,6 SDR 7,4 | Q19: 63 | R19: 8.6 | S19: SDR 7,4
E20: 19 | G20: Zugpunkt | H20: Pulling point | K20: Punkt ciągnięcia | L20: 拉拽点
E21: 20 | G21: Rohr ziehen | H21: Pull the pipe | K21: Ciągnij rurę | L21: 拉伸管道
E22: 21 | G22: Ergebnisse | H22: Results | K22: Wyniki | L22: 计算结果
E23: 22 | G23: Längenermittlung | H23: Length determination | K23: Określenie długości | L23: 距离计算
E24: 23 | G24: Gesamtzuglänge | H24: Total tensile length | K24: Całkowita dł. rozciągania | L24: 总拉伸距离
E25: 24 | G25: Montagetemperatur | H25: Installation temperature | K25: Temperatura montażu | L25: 安装温度时
E26: 25 | G26: Zugkraft | H26: Tensile force | K26: Siła rozciągająca | L26: 拉力
E27: 26 | G27: Im Betrieb unter Druck | H27: In operation under pressure | K27: Podczas pracy pod ciśnieniem | L27: 带压工作时
E28: 27 | G28: Kraft im Festpunkt | H28: Force at fixed point | K28: Siła w punkcie mocowania | L28: 锚点拉力
E29: 28 | G29: Außer Betrieb drucklos | H29: Out of operation pressureless | K29: Poza pracą bez ciśnienia | L29: 非工作、无压状态时
E30: 29 | G30: Kraft im Festpunkt | H30: Force at fixed point | K30: Siła w punkcie mocowania | L30: 锚点拉力
E31: 30 | G31: Vorspannung | H31: Pre-tensioning | K31: Wstępne naprężenie | L31: 预应力
E32: 31 | G32: Selbstspannung | H32: Self-tensioning | K32: Samonaprężanie | L32: 内应力
E33: 32 | G33: Installationsvideo hier klicken | H33: Installation video click here | K33: Film instalacyjny kliknij tutaj | L33: 点击查看安装视频
E34: 33 | G34: Rohr nicht ziehen | H34: Do not pull the pipe | K34: Nie ciągnij rury | L34: 不要拉伸管道
E35: 34 | G35: Kommentar | H35: Comment | K35: Komentarz | L35: 附加说明
E36: 35 | G36: Nutzungsbedingungen akzeptieren | H36: Accept terms of use | K36: Zaakceptuj warunki użytkowania | L36: 接受使用条款
E37: 36 | G37: Berechnungstool RAUPEX Industrierohrsystem: Montage mit Vorspannung oder Selbstspannung | H37: RAUPEX industrial pipe system calculation tool: Installation with pre-tensioning or self-tensioning | K37: Narzędzie do obliczania przemysłowego systemu rur RAUPEX: Montaż z wstępnym naprężeniem lub samonaprężaniem | L37: RAUPEX工业管道系统计算工具：预应力或内应力安装
E38: 37 | G38: Mit diesem RAUPEX Berechnungstool können verschiedene Kräfte bei der Montage mit Vorspannung ermittelt werden. Das RAUPEX-System muss hierbei aus den Komponenten RAUPEX oder RAUTHERM FW Rohren der Rohrreihen SDR 11 oder SDR 7,4 und den Verbindungstechniken SCHIEBEHÜLSE, SMARTFUSE oder FUSAPEX bestehen. In den vorgespannten Rohrleitungsteilen dürfen hierbei keine Flanschverbindungen, keine bauseitigen Verbindungstechniken oder zugempfindliche Bauteile enthalten sein. Nach Eingabe aller Daten in den grau hinterlegten Zellen werden erwartende Kräfte im Betrieb unter Druck, außer Betrieb drucklos sowie zur Vorspannung ermittelt. Die im Berechnungstool ermittelten Kräfte sind hierbei nicht mit Sicherheitsfaktoren beaufschlagt. Die größte ermittelte Kraft ist relevant für die Auslegung der Festpunkte. Auch wird eine Zuglänge zur Vorspannung ermittelt, welche vorzugsweise in der Mitte der Rohrleitung zu platzieren ist. Die Kraftübertragung am Festpunkt oder beim Vorspannen der Rohrleitung muss immer über die stirnseitige, über das Rohr herausstehende, Kreisringfläche der Verbindungstechnik erfolgen. Ergänzende Informationen zur Montage mit Vorspannung sind dem Installationsvideo zu entnehmen, welche durch einen Klick auf nebenstehendes Bild gestartet werden kann. Bauseitige Komponenten und Gebäudeanforderungen außerhalb des RAUPEX-Systems sind in der Betrachtung nicht einbezogen und müssen durch den Errichter und Betreiber gesondert definiert und umgesetzt werden. Das Berechnungstool bietet unterschiedliche Eingabemöglichkeiten an, welche durch den Benutzer auszuwählen, zu kombinieren und auf den jeweiligen Anwendungsfall zu übertragen sind. Die bei der Berechnung hinterlegten Formeln, Konstanten, Variablen und Näherungswerte können nicht immer auf die jeweiligen Betriebsparameter angepasst werden. Der sich hierbei ergebende Fehler fließt direkt in die Ergebnisse ein. Auch können sich durch Fehler in der Berechnung weitere Abweichungen ergeben. | H38: This RAUPEX calculation tool can be used to determine various forces during installation with pre-tensioning. The RAUPEX system must consist of RAUPEX or RAUTHERM FW pipes from the SDR 11 or SDR 7.4 pipe series and SCHIEBEHÜLSE, SMARTFUSE, or FUSAPEX connection technologies. The pre-tensioned pipe sections must not contain any flange connections, on-site connection techniques, or tension-sensitive components. After entering all data in the gray cells, the expected forces during operation under pressure, out of operation without pressure, and for pre-tensioning are determined. The forces determined in the calculation tool are not subject to safety factors. The largest force determined is relevant for the design of the fixed points. A tensile length for pre-tensioning is also determined, which should preferably be placed in the middle of the pipeline. The force transmission at the fixed point or when pre-tensioning the pipe must always be via the circular ring surface of the connection technology protruding from the front of the pipe. Additional information on installation with pre-tensioning can be found in the installation video, which can be started by clicking on the adjacent image. On-site components and building requirements outside the RAUPEX system are not included in the analysis and must be defined and implemented separately by the installer and operator. The calculation tool offers various input options, which must be selected, combined, and applied to the respective application by the user. The formulas, constants, variables, and approximate values stored in the calculation cannot always be adapted to the respective operating parameters. Any errors resulting from this are directly incorporated into the results. Errors in the calculation may also result in further deviations. | K38: To narzędzie obliczeniowe RAUPEX może być używane do określania różnych sił podczas montażu z naprężeniem wstępnym. System RAUPEX musi składać się z rur RAUPEX lub RAUTHERM FW z serii SDR 11 lub SDR 7.4 oraz technologii połączeń typu TULEJA ZACISKOWA, SMARTFUSE lub FUSAPEX. Wstępnie naprężone odcinki rur nie mogą zawierać żadnych połączeń kołnierzowych, technik łączenia na miejscu ani elementów wrażliwych na naprężenia. Po wprowadzeniu wszystkich danych w szarych komórkach określane są przewidywane siły podczas pracy pod ciśnieniem, poza pracą bez ciśnienia oraz podczas wstępnego naprężania. Siły określone w narzędziu do obliczania nie podlegają współczynnikom bezpieczeństwa. Największa określona siła ma znaczenie dla projektowania punktów stałych. Określana jest również długość rozciągania dla wstępnego naprężenia, która powinna być umieszczona najlepiej w środkowej części rurociągu. Przenoszenie siły w punkcie stałym lub podczas wstępnego naprężania rury musi zawsze odbywać się poprzez okrągłą powierzchnię pierścieniową technologii połączeń wystającą z przodu rury. Dodatkowe informacje na temat montażu z wstępnym naprężeniem można znaleźć w filmie instalacyjnym, który można uruchomić, klikając na sąsiedni obrazek. Elementy na miejscu i wymagania budowlane poza systemem RAUPEX nie są uwzględnione w analizie i muszą być zdefiniowane i wdrożone oddzielnie przez instalatora i operatora. Narzędzie obliczeniowe oferuje różne opcje wprowadzania danych, które muszą być wybrane, połączone i zastosowane do danego zastosowania przez użytkownika. Formuły, stałe, zmienne i wartości przybliżone zapisane w obliczeniach nie zawsze mogą być dostosowane do odpowiednich parametrów roboczych. Wszelkie błędy wynikające z tego są bezpośrednio uwzględniane w wynikach. Błędy w obliczeniach mogą również powodować dalsze odchylenia. | L38: 此 RAUPEX计算工具可用于在预应力安装中计算多种力的大小。 RAUPEX系统必须由SDR 11 / SDR 7.4系列的RAUPEX / RAUTHERM FW管道以及收紧套环式连接、SMARTFUSE、FUSAPEX 连接技术相关产品组成。预应力管段不得包含任何法兰连接、结构侧连接技术或应力敏感部件。 在灰色单元格内输入所有数据后，可以计算出带压工作时、非工作无压状态时、以及预拉伸时的预期应力。 计算工具中得出的力未考虑安全系数，因此安全系数需设计安装人员另行考虑和附加。 计算出的最大力与锚点的设计有关。此外，还计算了预拉伸时的拉伸距离，该拉伸距离最好位于管段的中心。在锚固管道以及对管道进行预拉伸时，力的传递必须始终通过连接管件的端部、从管道上凸出的圆环表面进行。更多有关预应力安装的信息，可参考安装视频，点击旁边的图片即可访问。 RAUPEX系统之外的部件和建筑本身的要求不在此工具的考虑范围内，这些要求必须由设计和安装人员另行确定和实施。 本计算工具提供了多种不同的输入选项，用户必须根据实际情况进行选择、组合，令其符合实际应用案例。本计算工具中使用的公式、常数、变量和近似值并不总是能够完全适应实际情况。由此产生的错误会直接反映在结果中。计算中的错误也可能导致其他偏差。
E39: 38 | G39: Das Ergebnis ist damit ausschließlich eine ungefähre Näherung, für deren praktische Genauigkeit und Anwendbarkeit wir im Einzelfall keine Gewähr übernehmen können. | H39: The result is therefore only an approximate estimate, and we cannot guarantee its practical accuracy and applicability in individual cases. | K39: Wynik jest zatem jedynie przybliżonym oszacowaniem i nie możemy zagwarantować jego praktycznej dokładności i zastosowania w poszczególnych przypadkach. | L39: 因此，计算结果仅为近似值，我们无法保证其在特定情况下的实际准确性和适用性。
E40: 39 | G40: Wir sind stehts bemüht dieses Berechnungstool zu verbessern und bitten in diesem Zusammenhang um Ihre Rückmeldung aus der praktischen Anwendung sowie der Übereinstimmung mit Anlagen im Betrieb. Aktualisierte Versionen werden über unsere Homepage als Download zur Verfügung gestellt, somit prüfen Sie bitte bei Nutzung die Aktualität des Berechnungstool. Alle Daten innerhalb dieser Webseite/Software sind urheberrechtlich geschützt und dürfen nicht ohne Zustimmung der Rechteinhaber verwendet werden. Die durch das Urheberrecht begründeten Rechte, insbesondere die der Übersetzung, des Nachdruckes, der Entnahme von Abbildungen, der Funksendungen, der Wiedergabe auf fotomechanischem oder ähnlichem Wege und der Speicherung in Datenverarbeitungsanlagen, bleibt vorbehalten. Durch die Nutzung dieses Berechnungstools gelten die Liefer- und Zahlungsbedingungen der REHAU Industries SE & Co. KG als akzeptiert. Diese stehen auf unserer Homepage zur Verfügung oder unter folgendem Link: www.rehau.com/de-de/liefer-und-zahlungsbedingungen Wenn Sie Fragen haben, kontaktieren Sie uns bitte: REHAU Industries SE & Co. KG, Ytterbium 4, D-91058 Erlangen Tel. +49-9131-92-0, Team Industrierohrsysteme | H40: We are constantly striving to improve this calculation tool and would therefore appreciate your feedback on its practical application and compatibility with equipment in operation. Updated versions are available for download on our website, so please check that you are using the latest version of the calculation tool. All data within this website/software is protected by copyright and may not be used without the consent of the copyright holder. The rights established by copyright, in particular those of translation, reprinting, extraction of illustrations, radio broadcasts, reproduction by photomechanical or similar means, and storage in data processing systems, are reserved. By using this calculation tool, you accept the terms and conditions of delivery and payment of REHAU Industries SE & Co. KG. These are available on our homepage or at the following link: www.rehau.com/de-de/liefer-und-zahlungsbedingungen If you have any questions, please contact us: REHAU Industries SE & Co. KG, Ytterbium 4, D-91058 Erlangen, Germany Tel. +49-9131-92-0, Industrial Pipe Systems Team | K40: Nieustannie dążymy do ulepszania tego narzędzia obliczeniowego i dlatego będziemy wdzięczni za opinie na temat jego praktycznego zastosowania i kompatybilności z eksploatowanym sprzętem. Zaktualizowane wersje są dostępne do pobrania na naszej stronie internetowej, dlatego prosimy o sprawdzenie, czy korzystasz z najnowszej wersji narzędzia obliczeniowego. Wszystkie dane zawarte na tej stronie internetowej/w tym oprogramowaniu są chronione prawem autorskim i nie mogą być wykorzystywane bez zgody właściciela praw autorskich. Zastrzeżone są prawa wynikające z prawa autorskiego, w szczególności prawa do tłumaczenia, przedruku, wykorzystania ilustracji, emisji radiowej, reprodukcji za pomocą środków fotomechanicznych lub podobnych oraz przechowywania w systemach przetwarzania danych. Korzystając z tego narzędzia obliczeniowego, akceptujesz warunki dostawy i płatności REHAU Industries SE & Co. KG. Są one dostępne na naszej stronie internetowej lub pod następującym linkiem: https://www.rehau.com/pl-pl/warunki-dostaw-i-platnosci W razie pytań prosimy o kontakt: REHAU Sp. z o.o. Baranowo ul. Poznańska 1A, 62-081 Przeźmierowo k. Poznania | L40: 我们一直在努力改进此计算工具，期待并感谢您反馈它在实际应用、设备运行的兼容性信息。 请确保始终使用此计算工具的最新版本，您可以通过我们的网站下载此计算工具的最新版本。 本网站/软件中的所有数据均受版权保护，未经版权所有者同意不得使用。保留所有基于版权的权利，特别是翻译、复印、提取图像、广播、通过拍照或类似意图进行复制、在数据处理系统中存储数据。 使用此计算工具即视为接受REHAU Industries SE & Co. KG的交付和付款条件。这些条件可在我们的主页或以下链接找到：www.rehau.com/de-de/liefer-und-zahlungsbedingungen 如果您有任何疑问，请联系我们： REHAU Industries SE & Co. KG，Ytterbium 4，D-91058 Erlangen 电话 +49-9131-92-0，工业管道系统团队
E41: 40 | G41: NUTZUNGSBEDINGUNGEN | H41: TERMS OF USE | K41: WARUNKI KORZYSTANIA | L41: 使用条款
E42: 41 | G42: Bitte klicken Sie hier und beachten die Hinweise in den Nutzungsbedingungen. | H42: Please click here and note the information in the terms of use. | K42: Kliknij tutaj i zapoznaj się z informacjami zawartymi w warunkach korzystania. | L42: 点击此处查看使用条款
E43: 42 | G43: Installationsvideo | H43: Installation video | K43: Film instalacyjny | L43: 安装视频
E44: 43 | G44: Sprache wählen | H44: Select language | K44: Wybierz język | L44: 选择语言

Sheet Quellen (hidden)
A1: Temperatur | B1: E-Modul (Zug)
A2: [° C] | B2: [N/mm2] | C2: d
A3: -40 | B3: 1884 | O3: Querschnittsfläche PEX-Rohr | P3: =IFERROR((((Vorspannung!E9/2)^2)*PI())-((((Vorspannung!E9-Vorspannung!E10-Vorspannung!E10)/2)^2)*PI()),"-") -> 1,042 | Q3: [mm2]
A4: -39 | B4: =B3+Quellen!$C$4 -> 1870 | C4: =(Quellen!B3-Quellen!B23)/(Quellen!A3-Quellen!A23) -> -13.7 | O4: Gewicht PEX-Rohr pro Meter | P4: =IFERROR(P3*1000*1/10^6,"-") -> 1.0 | Q4: [kg/m]
A5: -38 | B5: =B4+Quellen!$C$4 -> 1857 | O5: Innenvolumen PEX-Rohr | P5: =(Vorspannung!E9-Vorspannung!E10-Vorspannung!E10)^2*PI()/4/1000 -> 2.1 | Q5: [ltr/m]
A6: -37 | B6: =B5+Quellen!$C$4 -> 1843 | O6: Poisson-/Querkontraktionszahl Thermoplaste | P6: 0.35
A7: -36 | B7: =B6+Quellen!$C$4 -> 1829 | O7: Sicherheitsfaktor für Kraft | P7: 1
A8: -35 | B8: =B7+Quellen!$C$4 -> 1816
A9: -34 | B9: =B8+Quellen!$C$4 -> 1802
A10: -33 | B10: =B9+Quellen!$C$4 -> 1788
A11: -32 | B11: =B10+Quellen!$C$4 -> 1775
A12: -31 | B12: =B11+Quellen!$C$4 -> 1761
A13: -30 | B13: =B12+Quellen!$C$4 -> 1748
A14: -29 | B14: =B13+Quellen!$C$4 -> 1734
A15: -28 | B15: =B14+Quellen!$C$4 -> 1720
A16: -27 | B16: =B15+Quellen!$C$4 -> 1707
A17: -26 | B17: =B16+Quellen!$C$4 -> 1693
A18: -25 | B18: =B17+Quellen!$C$4 -> 1679
A19: -24 | B19: =B18+Quellen!$C$4 -> 1666
A20: -23 | B20: =B19+Quellen!$C$4 -> 1652
A21: -22 | B21: =B20+Quellen!$C$4 -> 1638
A22: -21 | B22: =B21+Quellen!$C$4 -> 1625
A23: -20 | B23: 1611
A24: -19 | B24: =B23+Quellen!$C$24 -> 1585 | C24: =(Quellen!B23-Quellen!B43)/(Quellen!A23-Quellen!A43) -> -25.6
A25: -18 | B25: =B24+Quellen!$C$24 -> 1560
A26: -17 | B26: =B25+Quellen!$C$24 -> 1534
A27: -16 | B27: =B26+Quellen!$C$24 -> 1509
A28: -15 | B28: =B27+Quellen!$C$24 -> 1483
A29: -14 | B29: =B28+Quellen!$C$24 -> 1458
A30: -13 | B30: =B29+Quellen!$C$24 -> 1432
A31: -12 | B31: =B30+Quellen!$C$24 -> 1407
A32: -11 | B32: =B31+Quellen!$C$24 -> 1381
A33: -10 | B33: =B32+Quellen!$C$24 -> 1356
A34: -9 | B34: =B33+Quellen!$C$24 -> 1330
A35: -8 | B35: =B34+Quellen!$C$24 -> 1304
A36: -7 | B36: =B35+Quellen!$C$24 -> 1279
A37: -6 | B37: =B36+Quellen!$C$24 -> 1253
A38: -5 | B38: =B37+Quellen!$C$24 -> 1228
A39: -4 | B39: =B38+Quellen!$C$24 -> 1202
A40: -3 | B40: =B39+Quellen!$C$24 -> 1177
A41: -2 | B41: =B40+Quellen!$C$24 -> 1151
A42: -1 | B42: =B41+Quellen!$C$24 -> 1126
A43: 0 | B43: 1100
A44: 1 | B44: =B43+Quellen!$C$44 -> 1078 | C44: =(Quellen!B43-Quellen!B66)/(Quellen!A43-Quellen!A66) -> -21.8
A45: 2 | B45: =B44+Quellen!$C$44 -> 1056
A46: 3 | B46: =B45+Quellen!$C$44 -> 1035
A47: 4 | B47: =B46+Quellen!$C$44 -> 1013
A48: 5 | B48: =B47+Quellen!$C$44 -> 991
A49: 6 | B49: =B48+Quellen!$C$44 -> 969
A50: 7 | B50: =B49+Quellen!$C$44 -> 948
A51: 8 | B51: =B50+Quellen!$C$44 -> 926
A52: 9 | B52: =B51+Quellen!$C$44 -> 904
A53: 10 | B53: =B52+Quellen!$C$44 -> 882
A54: 11 | B54: =B53+Quellen!$C$44 -> 860
A55: 12 | B55: =B54+Quellen!$C$44 -> 839
A56: 13 | B56: =B55+Quellen!$C$44 -> 817
A57: 14 | B57: =B56+Quellen!$C$44 -> 795
A58: 15 | B58: =B57+Quellen!$C$44 -> 773
A59: 16 | B59: =B58+Quellen!$C$44 -> 751
A60: 17 | B60: =B59+Quellen!$C$44 -> 730
A61: 18 | B61: =B60+Quellen!$C$44 -> 708
A62: 19 | B62: =B61+Quellen!$C$44 -> 686
A63: 20 | B63: =B62+Quellen!$C$44 -> 664
A64: 21 | B64: =B63+Quellen!$C$44 -> 643
A65: 22 | B65: =B64+Quellen!$C$44 -> 621
A66: 23 | B66: 599
A67: 24 | B67: =B66+Quellen!$C$67 -> 582 | C67: =(Quellen!B66-Quellen!B83)/(Quellen!A66-Quellen!A83) -> -17.4
A68: 25 | B68: =B67+Quellen!$C$67 -> 564
A69: 26 | B69: =B68+Quellen!$C$67 -> 547
A70: 27 | B70: =B69+Quellen!$C$67 -> 529
A71: 28 | B71: =B70+Quellen!$C$67 -> 512
A72: 29 | B72: =B71+Quellen!$C$67 -> 495
A73: 30 | B73: =B72+Quellen!$C$67 -> 477
A74: 31 | B74: =B73+Quellen!$C$67 -> 460
A75: 32 | B75: =B74+Quellen!$C$67 -> 442
A76: 33 | B76: =B75+Quellen!$C$67 -> 425
A77: 34 | B77: =B76+Quellen!$C$67 -> 407
A78: 35 | B78: =B77+Quellen!$C$67 -> 390
A79: 36 | B79: =B78+Quellen!$C$67 -> 373
A80: 37 | B80: =B79+Quellen!$C$67 -> 355
A81: 38 | B81: =B80+Quellen!$C$67 -> 338
A82: 39 | B82: =B81+Quellen!$C$67 -> 320
A83: 40 | B83: 303
A84: 41 | B84: =B83+Quellen!$C$84 -> 297 | C84: =(Quellen!B83-Quellen!B103)/(Quellen!A83-Quellen!A103) -> -6.3
A85: 42 | B85: =B84+Quellen!$C$84 -> 291
A86: 43 | B86: =B85+Quellen!$C$84 -> 284
A87: 44 | B87: =B86+Quellen!$C$84 -> 278
A88: 45 | B88: =B87+Quellen!$C$84 -> 272
A89: 46 | B89: =B88+Quellen!$C$84 -> 266
A90: 47 | B90: =B89+Quellen!$C$84 -> 259
A91: 48 | B91: =B90+Quellen!$C$84 -> 253
A92: 49 | B92: =B91+Quellen!$C$84 -> 247
A93: 50 | B93: =B92+Quellen!$C$84 -> 241
A94: 51 | B94: =B93+Quellen!$C$84 -> 234
A95: 52 | B95: =B94+Quellen!$C$84 -> 228
A96: 53 | B96: =B95+Quellen!$C$84 -> 222
A97: 54 | B97: =B96+Quellen!$C$84 -> 216
A98: 55 | B98: =B97+Quellen!$C$84 -> 209
A99: 56 | B99: =B98+Quellen!$C$84 -> 203
A100: 57 | B100: =B99+Quellen!$C$84 -> 197
A101: 58 | B101: =B100+Quellen!$C$84 -> 191
A102: 59 | B102: =B101+Quellen!$C$84 -> 184
A103: 60 | B103: 178
A104: 61 | B104: =B103+Quellen!$C$104 -> 175.15 | C104: =(Quellen!B103-Quellen!B123)/(Quellen!A103-Quellen!A123) -> -2.9
A105: 62 | B105: =B104+Quellen!$C$104 -> 172.3
A106: 63 | B106: =B105+Quellen!$C$104 -> 169.45
A107: 64 | B107: =B106+Quellen!$C$104 -> 166.6
A108: 65 | B108: =B107+Quellen!$C$104 -> 163.75
A109: 66 | B109: =B108+Quellen!$C$104 -> 160.9
A110: 67 | B110: =B109+Quellen!$C$104 -> 158.05
A111: 68 | B111: =B110+Quellen!$C$104 -> 155.2
A112: 69 | B112: =B111+Quellen!$C$104 -> 152.35
A113: 70 | B113: =B112+Quellen!$C$104 -> 149.5
A114: 71 | B114: =B113+Quellen!$C$104 -> 146.65
A115: 72 | B115: =B114+Quellen!$C$104 -> 143.8
A116: 73 | B116: =B115+Quellen!$C$104 -> 140.95
A117: 74 | B117: =B116+Quellen!$C$104 -> 138.1
A118: 75 | B118: =B117+Quellen!$C$104 -> 135.25
A119: 76 | B119: =B118+Quellen!$C$104 -> 132.4
A120: 77 | B120: =B119+Quellen!$C$104 -> 129.55
A121: 78 | B121: =B120+Quellen!$C$104 -> 126.7
A122: 79 | B122: =B121+Quellen!$C$104 -> 123.85
A123: 80 | B123: 121
A124: 81 | B124: =B123+Quellen!$C$124 -> 120.2 | C124: =(Quellen!B123-Quellen!B133)/(Quellen!A123-Quellen!A133) -> -0.8
A125: 82 | B125: =B124+Quellen!$C$124 -> 119.4
A126: 83 | B126: =B125+Quellen!$C$124 -> 118.6
A127: 84 | B127: =B126+Quellen!$C$124 -> 117.8
A128: 85 | B128: =B127+Quellen!$C$124 -> 117
A129: 86 | B129: =B128+Quellen!$C$124 -> 116.2
A130: 87 | B130: =B129+Quellen!$C$124 -> 115.4
A131: 88 | B131: =B130+Quellen!$C$124 -> 114.6
A132: 89 | B132: =B131+Quellen!$C$124 -> 113.8
A133: 90 | B133: 113
A134: 91 | B134: =B133+Quellen!$C$134 -> 112.6 | C134: =(Quellen!B133-Quellen!B138)/(Quellen!A133-Quellen!A138) -> -0.4
A135: 92 | B135: =B134+Quellen!$C$134 -> 112.2
A136: 93 | B136: =B135+Quellen!$C$134 -> 111.8
A137: 94 | B137: =B136+Quellen!$C$134 -> 111.4
A138: 95 | B138: 111
